bitfinex/quotes_SOLUSD_20241113
["timestamp","ask_amount","ask_price","bid_price","bid_amount"]
[1731513463092,4.6227,216.33,216.2,12.4874]
[1731513463783,4.45678452,216.4,216.2,12.4874]
[1731513463984,4.621,216.4,216.2,12.4874]
[1731513464190,4.621,216.4,216.21,33.2075]
[1731513464390,4.621,216.4,216.21,33.3075]
[1731513464578,4.621,216.41,216.22,0.12549]
[1731513464781,22.53729564,216.43,216.23,0.1]
[1731513464993,22.53729564,216.43,216.21,33.3075]
[1731513465190,22.53729564,216.41,216.21,33.3075]
[1731513465496,22.53729564,216.43,216.21,33.3075]
[1731513465687,0.12549,216.42,216.21,33.2075]
[1731513465870,20.0,216.4,216.21,33.2075]
[1731513466199,4.6212,216.39,216.21,33.2075]
[1731513466371,20.0,216.38,216.21,33.2075]
[1731513467496,26.95405196,216.45,216.25,43.6489]
[1731513467677,5.42055501,216.46,216.26,0.12549]
[1731513468473,4.6197,216.46,216.26,0.22549]
[1731513468695,22.53729564,216.47,216.26,0.22549]
[1731513469000,0.12549,216.41,216.25,43.6489]
[1731513469292,12.81289,216.45,216.25,43.6489]
[1731513469293,20.0,216.36,216.25,43.6489]
[1731513469694,35.22469564,216.45,216.39,162.1]
[1731513469870,20.0,216.44,216.25,43.6489]
[1731513470073,0.12549,216.43,216.25,43.6489]
[1731513470284,4.6206,216.42,216.25,43.6489]
[1731513470683,4.6206,216.42,216.26,0.1]
[1731513470873,4.6206,216.42,216.25,43.6489]
[1731513471071,4.6206,216.42,216.26,0.1]
[1731513471393,4.6206,216.42,216.25,43.6489]
[1731513471789,4.6206,216.42,216.26,0.1]
[1731513472189,4.62,216.45,216.26,0.1]
[1731513473095,4.62,216.45,216.25,43.7489]
[1731513473274,0.12549,216.44,216.25,43.8489]
[1731513473473,4.6204,216.43,216.25,43.7489]
[1731513474094,4.6204,216.43,216.26,0.1]
[1731513474298,20.0,216.46,216.26,0.12549]
[1731513474486,20.0,216.48,216.27,45.7311]
[1731513474685,0.12549,216.47,216.27,45.7311]
[1731513475393,24.74479,216.48,216.27,45.7311]
[1731513476100,24.74479,216.48,216.28,0.1]
[1731513476396,24.74479,216.48,216.27,45.7311]
[1731513476592,24.6193,216.48,216.28,0.12549]
[1731513476797,24.6189,216.5,216.29,43.8374]
[1731513477116,4.6189,216.5,216.29,43.8374]
[1731513477295,0.80262287,216.52,216.3,44.06289]
[1731513477486,4.6186,216.52,216.33,31.8374]
[1731513477997,4.6186,216.52,216.34,13.01635837]
[1731513478376,4.6186,216.52,216.34,12.0925]
[1731513478781,0.4495152,216.53,216.34,12.0925]
[1731513478982,20.0,216.52,216.34,12.0925]
[1731513479993,4.6187,216.51,216.34,12.0925]
[1731513480293,0.12549,216.5,216.34,12.0925]
[1731513480597,4.6187,216.51,216.34,12.0925]
[1731513480793,22.53729564,216.47,216.34,12.0925]
[1731513480999,20.0,216.46,216.34,12.0925]
[1731513481202,22.53729564,216.45,216.34,12.0925]
[1731513481382,20.0,216.44,216.34,12.0925]
[1731513481580,22.53729564,216.47,216.34,12.0925]
[1731513481777,20.12549,216.46,216.34,12.0925]
[1731513481982,4.62,216.45,216.34,12.0925]
[1731513482787,20.12549,216.44,216.34,12.0925]
[1731513482976,20.0,216.42,216.34,12.0925]
[1731513483180,22.53729564,216.41,216.34,12.0925]
[1731513483380,20.0,216.42,216.34,12.0925]
[1731513483690,20.0,216.4,216.34,12.0925]
[1731513484274,20.0,216.42,216.34,12.0925]
[1731513484692,20.0,216.43,216.34,12.0925]
[1731513484906,20.0,216.41,216.34,12.0925]
[1731513485695,20.0,216.41,216.28,13.1032]
[1731513485878,0.12549,216.37,216.28,13.1032]
[1731513486080,20.12549,216.37,216.28,13.1032]
[1731513486306,4.6219,216.36,216.28,13.1032]
[1731513486476,20.0,216.35,216.28,13.1032]
[1731513487602,4.6223,216.34,216.28,13.1032]
[1731513487799,22.53729564,216.4,216.28,13.1032]
[1731513488006,4.6212,216.39,216.28,13.1032]
[1731513488501,4.6209,216.41,216.28,13.1032]
[1731513488677,4.6209,216.41,216.29,30.1835]
[1731513489083,4.6205,216.43,216.29,30.1835]
[1731513489294,22.53729564,216.46,216.29,30.1835]
[1731513490189,4.6195,216.47,216.3,23.776884]
[1731513490490,4.6195,216.47,216.29,30.1835]
[1731513490691,4.6195,216.47,216.31,12.7429]
[1731513491283,0.4495152,216.53,216.51,162.1]
[1731513491477,0.4495152,216.53,216.35,12.7429]
[1731513491478,0.4495152,216.53,216.36,23.776884]
[1731513491690,5.0678152,216.53,216.36,23.776884]
[1731513491985,22.53729564,216.52,216.35,12.8429]
[1731513492180,0.4495152,216.53,216.35,12.8429]
[1731513492485,5.0678152,216.53,216.36,23.776884]
[1731513492999,20.0,216.52,216.36,23.776884]
[1731513493215,42.53729564,216.52,216.35,12.7429]
[1731513493502,20.4495152,216.53,216.36,23.776884]
[1731513493702,25.0678152,216.53,216.35,12.7429]
[1731513493904,22.53729564,216.52,216.35,12.7429]
[1731513494206,25.0678152,216.53,216.35,12.7429]
[1731513494207,20.0,216.51,216.35,12.7429]
[1731513494502,0.4495152,216.53,216.36,57.071674]
[1731513494693,0.4495152,216.53,216.36,56.971674]
[1731513495006,5.0678152,216.53,216.36,56.746184]
[1731513495403,22.53729564,216.52,216.36,56.746184]
[1731513495994,22.53729564,216.5,216.36,32.9693]
[1731513496404,22.53729564,216.45,216.36,32.9693]
[1731513496716,20.0,216.48,216.36,32.9693]
[1731513496913,22.53729564,216.49,216.36,32.9693]
[1731513497288,22.53729564,216.45,216.36,32.9693]
[1731513497614,20.0,216.44,216.36,32.9693]
[1731513497908,20.0,216.42,216.36,32.9693]
[1731513498108,24.6207,216.42,216.36,32.9693]
[1731513498405,20.0,216.4,216.36,32.9693]
[1731513498614,20.0,216.4,216.35,12.7429]
[1731513498910,20.12549,216.42,216.3,43.3428]
[1731513499106,22.53729564,216.39,216.3,43.3428]
[1731513499507,20.0,216.4,216.3,43.3428]
[1731513499703,20.0,216.38,216.3,43.3428]
[1731513500096,0.12549,216.37,216.3,43.3428]
[1731513500401,24.6215,216.38,216.3,43.3428]
[1731513500613,27.15819564,216.41,216.3,43.3428]
[1731513500793,22.53729564,216.41,216.3,43.3428]
[1731513501195,27.15829564,216.41,216.3,43.3428]
[1731513501600,48.396384,216.47,216.3,43.3428]
[1731513501916,22.53729564,216.41,216.3,43.3428]
[1731513502090,24.621,216.4,216.3,43.3428]
[1731513502411,20.0,216.4,216.3,43.3428]
[1731513502714,22.53729564,216.45,216.3,43.3428]
[1731513502907,22.53729564,216.43,216.3,43.3428]
[1731513503116,22.53729564,216.41,216.3,43.3428]
[1731513503288,16.2655,216.51,216.3,43.3428]
[1731513503289,22.53729564,216.43,216.3,43.3428]
[1731513503615,22.53729564,216.45,216.3,43.3428]
[1731513504314,27.15729564,216.45,216.3,43.3428]
[1731513504989,22.53729564,216.43,216.3,43.3428]
[1731513505186,20.0,216.42,216.3,43.3428]
[1731513505391,22.53729564,216.39,216.3,43.3428]
[1731513505589,20.0,216.39,216.3,43.3428]
[1731513505813,42.53729564,216.42,216.3,43.3428]
[1731513506001,20.0,216.42,216.3,43.3428]
[1731513506201,22.53729564,216.44,216.3,43.3428]
[1731513506404,4.62,216.45,216.3,43.3428]
[1731513506602,24.62,216.45,216.3,43.3428]
[1731513507204,22.53729564,216.42,216.3,43.3428]
[1731513507411,22.53729564,216.31,216.25,12.9503]
[1731513507613,22.53729564,216.37,216.25,12.9503]
[1731513507614,22.53729564,216.29,216.25,12.9503]
[1731513507799,22.53729564,216.33,216.25,12.9503]
[1731513508124,20.0,216.34,216.25,12.9503]
[1731513508702,20.0,216.32,216.25,12.9503]
[1731513509009,22.53729564,216.35,216.25,12.9503]
[1731513509204,20.0,216.34,216.25,12.9503]
[1731513509407,11.5521,216.41,216.25,12.9503]
[1731513509408,22.53729564,216.37,216.25,12.9503]
[1731513509708,20.0,216.36,216.25,12.9503]
[1731513510109,20.0,216.31,216.24,31.5695]
[1731513510309,22.53729564,216.34,216.24,31.5695]
[1731513510613,24.6225,216.33,216.24,31.5695]
[1731513510816,22.53729564,216.32,216.24,31.5695]
[1731513511027,20.0,216.33,216.24,31.5695]
[1731513511413,22.53729564,216.3,216.24,31.5695]
[1731513511615,20.0,216.29,216.24,31.5695]
[1731513511919,20.0,216.25,216.18,30.0991]
[1731513512119,22.53729564,216.24,216.18,30.0991]
[1731513512529,20.0,216.21,216.15,12.1586]
[1731513513521,22.53729564,216.22,216.15,12.1586]
[1731513513825,22.53729564,216.2,216.15,12.1586]
[1731513514027,20.0,216.21,216.15,12.1586]
[1731513514416,24.6252,216.21,216.15,12.1586]
[1731513515018,22.53729564,216.2,216.15,12.1586]
[1731513515713,4.6255,216.19,216.1,30.0991]
[1731513516024,22.53729564,216.18,216.1,30.0991]
[1731513516226,20.0,216.15,216.1,30.0991]
[1731513516422,22.53729564,216.14,216.09,13.2936]
[1731513516805,22.53729564,216.14,216.05,30.6884]
[1731513517410,20.0,216.19,216.05,30.6884]
[1731513517815,22.53729564,216.16,216.05,30.6884]
[1731513518628,22.53729564,216.12,216.05,30.6884]
[1731513518818,22.53729564,216.1,216.05,30.6884]
[1731513519016,22.53729564,216.11,216.05,30.6884]
[1731513519234,22.53729564,216.12,216.05,30.6884]
[1731513519533,22.53729564,216.12,215.94,4.5477212]
[1731513519534,22.66278564,216.06,215.94,13.1721]
[1731513519734,22.53729564,215.97,215.94,13.1721]
[1731513519930,22.53729564,216.01,216.0,134.93310436]
[1731513520232,22.53729564,216.03,215.94,13.1721]
[1731513523329,22.53729564,216.1,215.94,13.1721]
[1731513523833,22.53729564,216.08,215.94,13.1721]
[1731513524022,22.53729564,216.08,215.95,23.776884]
[1731513524205,22.53729564,216.06,215.94,13.1721]
[1731513524408,22.53729564,216.04,215.94,13.1721]
[1731513524632,22.53729564,216.02,215.94,13.1721]
[1731513525128,22.53729564,216.0,215.94,13.1721]
[1731513526221,22.53729564,215.98,215.94,13.1721]
[1731513526415,22.53729564,216.0,215.94,13.1721]
[1731513527838,23.2363,216.12,215.94,13.1721]
[1731513527839,22.53729564,216.06,216.05,162.1]
[1731513528133,22.53729564,216.08,215.95,23.776884]
[1731513528308,22.53729564,216.1,215.95,23.776884]
[1731513528937,4.6271,216.12,215.95,23.776884]
[1731513529321,22.53729564,216.09,215.95,23.776884]
[1731513529525,22.53729564,216.07,215.95,23.776884]
[1731513529727,22.53729564,216.09,215.95,23.776884]
[1731513530031,27.11518195,216.15,215.95,23.776884]
[1731513530236,22.53729564,216.11,215.95,23.776884]
[1731513531026,22.53729564,216.15,215.96,0.22549]
[1731513531422,49.181,216.25,215.96,0.32549]
[1731513531617,0.12549,216.18,215.96,0.32549]
[1731513532133,0.12549,216.18,215.98,23.902374]
[1731513532310,22.53729564,216.19,215.98,24.002374]
[1731513532514,22.53729564,216.19,216.0,23.776884]
[1731513532515,0.12549,216.18,216.0,23.776884]
[1731513532737,22.53729564,216.17,216.0,23.776884]
[1731513533043,27.16249564,216.21,216.0,23.776884]
[1731513533333,0.12549,216.2,216.0,23.776884]
[1731513533738,27.16249564,216.21,216.0,23.776884]
[1731513533943,4.6248,216.23,216.03,23.776884]
[1731513534147,4.6248,216.23,216.05,23.776884]
[1731513534436,0.79703075,216.28,216.07,32.45]
[1731513534618,27.16039564,216.31,216.1,0.12549]
[1731513534818,27.16039564,216.31,216.1,23.902374]
[1731513535019,27.15999564,216.33,216.1,24.002374]
[1731513535221,12.3298,216.35,216.14,12.117]
[1731513535222,27.15949564,216.35,216.14,12.117]
[1731513535529,22.53729564,216.4,216.19,12.117]
[1731513535736,22.53729564,216.38,216.2,23.776884]
[1731513536040,0.12549,216.37,216.2,23.776884]
[1731513536225,22.53729564,216.36,216.2,23.776884]
[1731513536627,22.53729564,216.36,216.19,12.117]
[1731513536628,0.12549,216.33,216.19,12.117]
[1731513537161,4.6221,216.35,216.19,12.117]
[1731513537442,4.6221,216.35,216.2,23.776884]
[1731513537937,36.61980027,216.36,216.2,23.776884]
[1731513538122,36.61980027,216.38,216.2,23.776884]
[1731513538518,36.61980027,216.4,216.2,23.776884]
[1731513538720,36.61980027,216.36,216.2,23.776884]
[1731513539047,4.6221,216.35,216.2,23.776884]
[1731513539223,4.6221,216.35,216.28,36.61140782]
[1731513539423,41.23350782,216.35,216.26,36.61140782]
[1731513539726,4.6221,216.35,216.3,36.61140782]
[1731513539939,4.6221,216.35,216.28,36.61140782]
[1731513540445,24.6225,216.33,216.25,36.61140782]
[1731513540738,24.6225,216.33,216.27,36.61140782]
[1731513540921,4.6221,216.35,216.29,36.61140782]
[1731513541345,24.6217,216.37,216.29,36.61140782]
[1731513541748,36.73689782,216.36,216.27,36.61140782]
[1731513541933,36.61140782,216.28,216.19,12.117]
[1731513542144,20.0,216.25,216.16,69.06140782]
[1731513542343,20.0,216.25,216.18,36.61140782]
[1731513542549,20.0,216.29,216.24,36.61140782]
[1731513542846,20.0,216.29,216.26,36.61140782]
[1731513543231,36.61140782,216.35,216.16,32.45]
[1731513543232,20.0,216.34,216.28,36.61140782]
[1731513543443,20.0,216.31,216.17,23.776884]
[1731513543625,20.12549,216.27,216.16,32.45]
[1731513543824,20.0,216.25,216.17,36.61140782]
[1731513544028,36.61140782,216.24,216.16,32.45]
[1731513544227,24.6248,216.23,216.16,32.45]
[1731513544426,24.6248,216.23,216.15,36.61140782]
[1731513544637,36.61140782,216.22,216.13,36.61140782]
[1731513545034,36.61140782,216.2,216.11,36.61140782]
[1731513545247,4.6248,216.23,216.08,12.7646]
[1731513545248,36.61140782,216.16,216.08,12.7646]
[1731513545424,36.61140782,216.18,216.09,36.61140782]
[1731513545626,20.0,216.19,216.11,36.61140782]
[1731513545832,36.61140782,216.18,216.09,36.61140782]
[1731513546045,36.61140782,216.16,216.08,12.7646]
[1731513546233,36.61140782,216.1,216.02,12.6421]
[1731513546427,36.61140782,216.12,216.03,36.61140782]
[1731513546647,36.61140782,216.16,216.07,36.61140782]
[1731513546852,4.6255,216.19,216.01,32.9317]
[1731513547023,4.6255,216.19,216.11,36.61140782]
[1731513547244,4.6255,216.19,216.01,32.9317]
[1731513547245,20.0,216.18,216.09,36.61140782]
[1731513547946,20.0,216.18,216.13,36.61140782]
[1731513548156,20.0,216.18,216.09,36.61140782]
[1731513548343,36.61140782,216.16,216.07,36.61140782]
[1731513548555,36.61140782,216.16,216.01,32.9317]
[1731513548556,36.61140782,216.14,216.05,36.61140782]
[1731513548760,20.0,216.11,216.03,36.61140782]
[1731513549065,20.0,216.15,216.07,36.61140782]
[1731513549250,36.61140782,216.14,216.05,36.61140782]
[1731513549450,20.0,216.13,216.05,36.61140782]
[1731513549647,36.61140782,216.21,216.12,36.61140782]
[1731513549839,36.61140782,216.25,216.16,36.61140782]
[1731513550460,36.61140782,216.29,216.15,36.61140782]
[1731513550638,36.61140782,216.31,216.24,36.61140782]
[1731513550836,45.76829702,216.33,216.24,36.61140782]
[1731513551058,41.23410782,216.33,216.24,36.61140782]
[1731513551256,41.23410782,216.33,216.22,36.61140782]
[1731513551257,36.61140782,216.31,216.22,36.61140782]
[1731513551442,36.61140782,216.31,216.18,12.1038]
[1731513551443,36.61140782,216.31,216.2,36.61140782]
[1731513551635,36.61140782,216.23,216.14,66.69900782]
[1731513552642,36.61140782,216.25,216.16,36.61140782]
[1731513552942,20.0,216.28,216.21,36.61140782]
[1731513553144,36.61140782,216.29,216.21,36.61140782]
[1731513553343,36.61140782,216.31,216.23,36.61140782]
[1731513554049,36.61140782,216.29,216.19,36.61140782]
[1731513555161,36.61140782,216.25,216.15,36.61140782]
[1731513555368,20.0,216.26,216.23,36.61140782]
[1731513555669,20.0,216.26,216.21,36.61140782]
[1731513555842,20.0,216.29,216.21,36.61140782]
[1731513556247,20.0,216.29,216.23,36.61140782]
[1731513556462,36.61140782,216.3,216.21,36.61140782]
[1731513556665,20.0,216.29,216.21,36.61140782]
[1731513556965,20.0,216.29,216.2,22.5451852]
[1731513556966,42.5451852,216.29,216.2,22.5451852]
[1731513557157,22.5451852,216.29,216.2,22.5451852]
[1731513557551,22.5451852,216.25,216.16,22.5451852]
[1731513558265,22.5451852,216.23,216.14,52.6327852]
[1731513558470,22.5451852,216.25,216.16,22.5451852]
[1731513558681,20.0,216.24,216.16,22.5451852]
[1731513559046,20.0,216.26,216.18,22.5451852]
[1731513559343,20.0,216.28,216.22,22.5451852]
[1731513559763,20.0,216.28,216.14,30.0876]
[1731513560068,20.0,216.28,216.16,22.5451852]
[1731513560069,22.5451852,216.25,216.16,22.5451852]
[1731513560243,22.5451852,216.25,216.14,30.0876]
[1731513560244,20.0,216.26,216.2,22.5451852]
[1731513560440,20.0,216.28,216.2,22.5451852]
[1731513560852,22.5451852,216.33,216.24,22.5451852]
[1731513561175,22.5451852,216.33,216.26,22.5451852]
[1731513561353,22.5451852,216.33,216.24,22.5451852]
[1731513561857,27.1681852,216.31,216.22,22.5451852]
[1731513562553,20.0,216.3,216.22,22.5451852]
[1731513562772,20.0,216.3,216.14,30.0876]
[1731513562773,22.5451852,216.29,216.2,22.5451852]
[1731513563067,22.5451852,216.23,216.14,22.5451852]
[1731513563258,22.5451852,216.21,216.12,22.5451852]
[1731513564169,27.1702852,216.21,216.12,22.5451852]
[1731513564381,22.5451852,216.19,216.12,22.5451852]
[1731513564553,20.0,216.2,216.12,22.5451852]
[1731513564759,22.5451852,216.25,216.16,22.5451852]
[1731513565069,20.0,216.24,216.18,22.5451852]
[1731513565365,20.0,216.24,216.08,32.7254]
[1731513565571,20.0,216.24,216.16,22.5451852]
[1731513565952,12.5134,216.26,216.18,22.5451852]
[1731513566153,17.1374,216.26,216.18,22.5451852]
[1731513566671,22.5451852,216.29,216.2,22.5451852]
[1731513566968,22.5451852,216.31,216.22,22.5451852]
[1731513567156,22.5451852,216.27,216.18,22.5451852]
[1731513567666,4.6223,216.34,216.26,22.5451852]
[1731513567873,0.1,216.41,216.17,45.3614]
[1731513567874,22.5451852,216.36,216.28,22.5451852]
[1731513568050,27.1665852,216.38,216.28,22.5451852]
[1731513568372,27.1665852,216.38,216.17,45.3614]
[1731513568373,22.5451852,216.34,216.26,22.5451852]
[1731513568578,34.6731852,216.36,216.26,22.5451852]
[1731513569070,34.6731852,216.36,216.17,45.3614]
[1731513569071,20.0,216.35,216.28,22.5451852]
[1731513569259,12.128,216.36,216.3,22.5451852]
[1731513569457,22.5451852,216.4,216.32,22.5451852]
[1731513569772,22.5451852,216.4,216.3,22.5451852]
[1731513570175,22.5451852,216.38,216.3,22.5451852]
[1731513570376,22.5451852,216.4,216.3,22.5451852]
[1731513570871,4.6212,216.39,216.3,22.5451852]
[1731513572075,24.6212,216.39,216.3,22.5451852]
[1731513572261,24.6212,216.39,216.32,22.5451852]
[1731513572879,0.79629537,216.44,216.19,0.1]
[1731513572880,7.53991935,216.46,216.37,22.5451852]
[1731513573563,4.6194,216.48,216.39,22.5451852]
[1731513573766,22.5451852,216.48,216.39,22.5451852]
[1731513573969,19.90710883,216.53,216.39,22.5451852]
[1731513574158,1.24567383,216.53,216.51,22.5451852]
[1731513574484,0.4495152,216.53,216.51,22.5451852]
[1731513574785,0.4495152,216.53,216.49,22.5451852]
[1731513575096,5.0678152,216.53,216.45,22.5451852]
[1731513575373,4.5678152,216.53,216.45,22.5451852]
[1731513575572,22.5451852,216.52,216.43,22.5451852]
[1731513576269,22.5451852,216.5,216.41,22.5451852]
[1731513576487,22.5451852,216.48,216.39,22.5451852]
[1731513577474,20.0,216.47,216.39,22.5451852]
[1731513577672,22.5451852,216.46,216.37,22.5451852]
[1731513579277,27.1649852,216.46,216.37,22.5451852]
[1731513579659,22.5451852,216.44,216.37,22.5451852]
[1731513580256,22.5451852,216.44,216.35,22.5451852]
[1731513580460,22.5451852,216.49,216.41,22.5451852]
[1731513580668,32.925,216.55,216.45,22.5451852]
[1731513580669,55.4701852,216.55,216.45,22.5451852]
[1731513581084,55.4701852,216.55,216.47,22.5451852]
[1731513581375,22.5451852,216.59,216.49,22.5451852]
[1731513581982,22.5451852,216.59,216.51,22.5451852]
[1731513583085,20.0,216.58,216.49,22.5451852]
[1731513583880,20.0,216.6,216.51,22.5451852]
[1731513584054,20.0,216.58,216.51,22.5451852]
[1731513584768,22.5451852,216.57,216.49,22.5451852]
[1731513584972,22.48968156,216.56,216.46,23.776884]
[1731513585887,22.48968156,216.54,216.43,23.776884]
[1731513586053,22.48968156,216.5,216.39,32.7006]
[1731513586875,22.48968156,216.48,216.36,12.9067]
[1731513587384,20.0,216.51,216.37,0.12549]
[1731513587644,22.48968156,216.5,216.37,0.12549]
[1731513587759,24.6187,216.51,216.36,12.9067]
[1731513587760,22.48968156,216.48,216.36,12.9067]
[1731513588559,22.48968156,216.44,216.26,0.2]
[1731513588761,20.0,216.43,216.24,43.1713]
[1731513588974,20.0,216.43,216.24,43.2713]
[1731513589176,22.48968156,216.48,216.27,0.1]
[1731513589360,20.0,216.51,216.32,0.1]
[1731513589556,27.10738156,216.56,216.39,0.12549]
[1731513589966,22.48968156,216.59,216.39,0.12549]
[1731513590566,22.48968156,216.59,216.39,23.902374]
[1731513590767,22.48968156,216.59,216.39,24.002374]
[1731513590973,4.6172,216.58,216.39,24.002374]
[1731513591163,22.48968156,216.57,216.39,23.902374]
[1731513591576,22.48968156,216.55,216.39,23.902374]
[1731513592366,22.48968156,216.53,216.39,23.902374]
[1731513592565,22.48968156,216.55,216.39,23.902374]
[1731513592769,20.0,216.52,216.39,23.902374]
[1731513593174,22.48968156,216.51,216.39,23.902374]
[1731513593376,4.6186,216.52,216.39,23.902374]
[1731513593564,24.6186,216.52,216.39,23.902374]
[1731513593967,17.00752046,216.66,216.41,0.1]
[1731513594283,22.48968156,216.65,216.43,0.2]
[1731513594481,22.48968156,216.65,216.45,0.2]
[1731513594797,22.48968156,216.65,216.5,0.12549]
[1731513595586,22.48968156,216.67,216.5,0.12549]
[1731513595790,27.10408156,216.71,216.52,23.902374]
[1731513595993,22.48968156,216.69,216.52,23.902374]
[1731513596172,22.48968156,216.67,216.52,23.902374]
[1731513596493,22.48968156,216.65,216.52,23.776884]
[1731513596708,22.48968156,216.63,216.51,12.9648]
[1731513596998,20.0,216.62,216.51,12.9648]
[1731513597698,4.6162,216.63,216.51,12.9648]
[1731513597995,20.0,216.62,216.51,12.9648]
[1731513598166,20.0,216.62,216.48,32.2159]
[1731513598167,20.0,216.55,216.39,45.3712]
[1731513598767,22.48968156,216.58,216.4,0.12549]
[1731513598970,20.0,216.6,216.42,0.1]
[1731513599376,20.0,216.62,216.42,0.1]
[1731513599575,22.48968156,216.59,216.4,24.002374]
[1731513599776,22.48968156,216.59,216.4,0.1]
[1731513600103,22.48968156,216.59,216.42,0.1]
[1731513600485,24.6168,216.6,216.39,45.3712]
[1731513600486,22.48968156,216.57,216.39,45.3712]
[1731513600773,24.6168,216.6,216.39,45.3712]
[1731513600774,20.0,216.56,216.4,0.12549]
[1731513601331,22.48968156,216.55,216.4,0.12549]
[1731513601482,20.0,216.54,216.4,23.902374]
[1731513601682,20.0,216.51,216.4,23.776884]
[1731513602004,20.0,216.49,216.41,0.12549]
[1731513602183,20.0,216.51,216.41,0.12549]
[1731513602504,27.10768156,216.54,216.41,0.12549]
[1731513602706,27.10818156,216.52,216.41,0.12549]
[1731513602887,20.0,216.49,216.41,0.12549]
[1731513603895,24.6191,216.49,216.41,0.12549]
[1731513604600,16.1632,216.54,216.4,23.776884]
[1731513604781,4.618,216.54,216.39,32.3498]
[1731513604985,38.75288156,216.54,216.39,32.3498]
[1731513605182,22.48968156,216.5,216.39,32.3498]
[1731513605381,22.48968156,216.53,216.39,32.3498]
[1731513605585,4.618,216.54,216.39,32.3498]
[1731513605803,22.48968156,216.46,216.4,0.12549]
[1731513605996,22.48968156,216.46,216.34,12.385]
[1731513606203,22.48968156,216.44,216.34,12.385]
[1731513606504,20.0,216.43,216.34,12.385]
[1731513606689,0.1,216.51,216.34,12.385]
[1731513606690,22.48968156,216.46,216.34,12.385]
[1731513606998,27.10958156,216.46,216.35,0.12549]
[1731513607201,4.6196,216.47,216.35,0.12549]
[1731513607385,22.48968156,216.44,216.34,12.385]
[1731513607585,4.6196,216.47,216.34,12.385]
[1731513607898,4.6182,216.53,216.4,0.1]
[1731513608202,4.6165,216.61,216.44,0.1]
[1731513608507,4.6164,216.62,216.47,0.12549]
[1731513608891,27.10608156,216.62,216.47,0.12549]
[1731513609404,4.6164,216.62,216.47,0.12549]
[1731513609795,27.10608156,216.62,216.47,0.12549]
[1731513610305,22.48968156,216.62,216.47,0.12549]
[1731513610696,22.48968156,216.6,216.47,0.12549]
[1731513611006,22.48968156,216.58,216.47,0.12549]
[1731513611196,20.0,216.59,216.47,0.12549]
[1731513611390,20.0,216.61,216.47,0.12549]
[1731513611590,22.48968156,216.58,216.47,0.12549]
[1731513611797,22.48968156,216.52,216.45,33.127]
[1731513611999,20.0,216.49,216.4,33.127]
[1731513612189,27.10898156,216.48,216.4,33.127]
[1731513612382,20.0,216.49,216.4,33.127]
[1731513612596,27.10788156,216.54,216.4,33.127]
[1731513612816,22.48968156,216.52,216.4,33.127]
[1731513613107,20.0,216.53,216.4,33.127]
[1731513613284,20.0,216.53,216.42,0.12549]
[1731513613712,22.48968156,216.5,216.4,33.127]
[1731513614288,22.48968156,216.48,216.4,33.127]
[1731513614493,4.6191,216.49,216.4,33.127]
[1731513614494,22.48968156,216.46,216.4,33.127]
[1731513614712,4.6191,216.49,216.35,12.8435]
[1731513614713,22.48968156,216.42,216.35,12.8435]
[1731513615213,20.0,216.48,216.35,12.8435]
[1731513615504,27.10988156,216.44,216.35,12.8435]
[1731513615706,22.48968156,216.42,216.35,12.8435]
[1731513615914,22.48968156,216.41,216.35,12.8435]
[1731513616114,4.6202,216.44,216.3,33.2206]
[1731513616115,22.48968156,216.39,216.3,33.2206]
[1731513616412,22.48968156,216.35,216.24,33.2206]
[1731513616598,22.48968156,216.37,216.24,33.2206]
[1731513616796,22.48968156,216.4,216.24,33.2206]
[1731513616999,22.48968156,216.38,216.24,33.2206]
[1731513617221,22.48968156,216.3,216.22,12.6961]
[1731513617504,20.0,216.29,216.22,12.6961]
[1731513617910,22.48968156,216.28,216.17,31.0861]
[1731513618113,22.48968156,216.26,216.17,31.0861]